bitfinex-derivatives/quotes_ETHF0:USTF0_20250709
["timestamp","ask_amount","ask_price","bid_price","bid_amount"]
[1752063425737,0.00564366,2657.1,2657.0,4.00953]
[1752063426739,0.00564366,2657.1,2657.0,3.2078]
[1752063426931,0.75238,2657.9,2657.4,0.75249]
[1752063427136,0.75238,2657.9,2657.0,11.57716049]
[1752063427137,0.75238,2657.9,2657.6,3.2078]
[1752063427532,0.75238,2657.9,2657.4,0.75248]
[1752063427533,3.2078,2657.9,2657.2,3.2078]
[1752063427738,0.7525,2657.4,2657.3,0.3529187]
[1752063428132,0.75249,2657.5,2657.3,0.3529187]
[1752063428337,1.2792,2657.4,2657.2,3.2078]
[1752063428539,1.2792,2657.4,2657.3,0.35294436]
[1752063428740,2.0317,2657.4,2657.3,0.35294436]
[1752063428943,1.2792,2657.4,2657.3,0.35294436]
[1752063429242,0.75243,2657.7,2657.3,1.55425]
[1752063429443,2.03166,2657.6,2657.2,3.2078]
[1752063429738,42.68074,2658.2,2657.7,0.7524]
[1752063429739,40.8,2658.2,2657.7,0.7524]
[1752063429945,1.3491,2658.0,2657.8,3.2078]
[1752063430345,2.10144,2658.0,2657.8,3.2078]
[1752063430540,0.75236,2657.9,2657.8,3.2078]
[1752063430745,0.75236,2657.9,2656.9,5.36904571]
[1752063430746,2.10146,2657.9,2657.5,3.2078]
[1752063430940,1.3491,2657.9,2657.5,3.2078]
[1752063431440,0.75245,2657.6,2657.5,3.2078]
[1752063431644,0.75243,2657.7,2657.5,3.56072344]
[1752063431836,1.3491,2657.6,2657.5,3.2078]
[1752063432043,2.10155,2657.6,2657.5,3.56070726]
[1752063433236,2.10155,2657.6,2657.5,3.56073038]
[1752063433944,1.3491,2657.6,2657.5,3.56073038]
[1752063434250,2.10155,2657.6,2657.5,3.56073038]
[1752063434649,1.3491,2657.6,2657.5,4.09669916]
[1752063434845,1.3491,2657.6,2657.5,4.84917916]
[1752063435048,0.75235,2658.0,2657.7,0.75241]
[1752063435239,38.18258,2658.1,2657.8,0.88889916]
[1752063435446,0.75245,2657.6,2657.5,3.2078]
[1752063435646,0.75245,2657.6,2657.5,4.09651939]
[1752063436046,1.99995,2657.6,2657.5,4.09651939]
[1752063436547,1.99995,2657.6,2657.5,6.24763438]
[1752063436747,1.99995,2657.6,2657.5,4.09651939]
[1752063437351,1.99995,2657.6,2657.5,3.56072007]
[1752063437746,0.75256,2657.2,2657.1,3.2078]
[1752063437950,0.75256,2657.2,2657.1,3.01807037]
[1752063438353,5.75256,2657.2,2657.1,3.01807037]
[1752063438554,5.75256,2657.2,2657.1,2.66513069]
[1752063438947,5.75256,2657.2,2657.1,2.12945821]
[1752063439145,0.75266,2656.9,2656.6,2.21467571]
[1752063439454,0.75264,2657.0,2656.7,1.28879211]
[1752063439661,0.75264,2657.0,2656.8,0.53611211]
[1752063439956,0.75264,2657.0,2656.9,0.53611211]
[1752063440560,0.75262,2657.0,2656.9,0.53611211]
[1752063441158,0.75261,2657.1,2656.9,0.53611211]
[1752063441362,31.519,2657.4,2657.0,0.53608549]
[1752063441552,31.519,2657.4,2657.1,0.53608549]
[1752063441754,0.75258,2657.2,2657.1,3.2078]
[1752063441960,0.75255,2657.3,2657.1,3.74375285]
[1752063442159,0.75248,2657.5,2657.3,0.75252]
[1752063442361,0.75248,2657.5,2657.4,0.53595285]
[1752063445659,32.11448,2657.5,2657.4,0.53595285]
[1752063445962,32.10348,2657.5,2657.4,0.53595285]
[1752063446264,32.07148,2657.5,2657.4,0.53595285]
[1752063446864,37.07148,2657.5,2657.4,0.53595285]
[1752063447159,37.07148,2657.5,2657.1,3.32201357]
[1752063447160,0.75256,2657.2,2657.1,3.32201357]
[1752063447360,3.2078,2657.2,2657.0,2.18480424]
[1752063447560,33.35939,2657.1,2657.0,2.18480424]
[1752063447757,0.75262,2657.0,2656.9,2.18480424]
[1752063447961,2.06642,2657.0,2656.9,2.18480424]
[1752063448155,7.06642,2657.0,2656.9,3.32201357]
[1752063448355,0.75265,2656.9,2656.8,2.18914067]
[1752063448659,0.75267,2656.8,2656.7,2.18914067]
[1752063449262,0.75267,2656.8,2656.7,2.19240614]
[1752063449558,1.88169,2656.8,2656.4,2.19240614]
[1752063449764,0.75279,2656.4,2656.3,2.19240614]
[1752063449964,0.75279,2656.4,2656.2,3.32201357]
[1752063450165,32.4575,2656.7,2656.2,3.32201357]
[1752063450364,0.75278,2656.5,2656.4,2.19281549]
[1752063450566,0.75279,2656.4,2656.3,1.275]
[1752063450762,0.75279,2656.4,2656.3,3.46779899]
[1752063450957,3.2078,2656.9,2656.3,4.26952899]
[1752063451164,0.75275,2656.6,2656.4,3.98517692]
[1752063451364,0.75275,2656.6,2656.5,1.79238538]
[1752063451759,0.75275,2656.6,2656.5,2.59411538]
[1752063452166,0.75275,2656.6,2656.5,4.78690692]
[1752063452462,0.75275,2656.6,2656.5,3.98517692]
[1752063452967,0.75275,2656.6,2656.5,1.79238538]
[1752063453265,0.75275,2656.6,2656.5,3.98517692]
[1752063454563,31.74675,2656.6,2656.5,3.98517692]
[1752063455261,31.74675,2656.6,2656.5,1.79238538]
[1752063457263,0.75275,2656.6,2656.5,1.79238538]
[1752063459862,31.52175,2656.6,2656.5,1.79238538]
[1752063460772,0.75276,2656.5,2656.4,2.19279154]
[1752063460968,30.769,2656.6,2656.4,2.19279154]
[1752063460969,0.75274,2656.6,2656.4,3.9369096]
[1752063461175,0.75275,2656.6,2656.5,3.9369096]
[1752063461374,0.75275,2656.6,2656.5,1.74411806]
[1752063461671,8.96055,2656.6,2656.5,1.74411806]
[1752063461870,3.76395,2656.4,2655.9,3.2078]
[1752063462173,0.75296,2655.8,2655.7,5.75235143]
[1752063462369,0.75296,2655.8,2655.7,2.12473]
[1752063462565,1.88228,2656.0,2655.6,3.2078]
[1752063462566,0.75299,2655.7,2655.6,3.2078]
[1752063462768,0.75299,2655.7,2655.6,4.00953]
[1752063463574,3.2078,2656.0,2655.6,0.80173]
[1752063463870,3.2078,2656.0,2655.6,3.2078]
[1752063463871,0.75299,2655.7,2655.6,3.2078]
[1752063464064,31.38498,2655.8,2655.6,0.80173]
[1752063464270,0.75299,2655.7,2655.6,2.06053]
[1752063464470,32.51442,2655.8,2655.3,3.2078]
[1752063464669,32.51442,2655.8,2655.3,5.26833]
[1752063464865,40.8,2656.2,2655.3,9.58792127]
[1752063465070,30.605,2656.1,2655.7,3.2078]
[1752063465277,0.75295,2655.9,2655.8,1.2588]
[1752063465772,0.75295,2655.9,2655.8,2.06053]
[1752063465968,0.75296,2655.8,2655.7,3.2078]
[1752063466169,5.09009,2656.0,2655.4,3.2078]
[1752063466369,32.45333,2655.9,2655.5,1.2588]
[1752063466576,0.75301,2655.6,2655.5,1.2588]
[1752063466766,0.75301,2655.6,2655.5,2.06053]
[1752063467471,30.562,2655.9,2655.5,2.06053]
[1752063467673,0.753,2655.7,2655.5,2.81355]
[1752063467870,0.75297,2655.8,2655.6,3.96081]
[1752063468077,0.75297,2655.8,2655.7,1.3084]
[1752063468574,0.75297,2655.8,2655.7,2.11013]
[1752063469675,0.75293,2655.9,2655.8,0.75295]
[1752063469877,0.75293,2655.9,2655.8,1.3663]
[1752063470077,0.75293,2655.9,2655.8,2.16803]
[1752063470379,0.75293,2655.9,2655.8,2.92099]
[1752063470567,0.75293,2655.9,2655.8,2.16803]
[1752063470873,30.441,2656.7,2655.8,0.80173]
[1752063471173,1.88203,2656.4,2655.9,3.2078]
[1752063471479,0.7528,2656.4,2656.3,3.2078]
[1752063471771,0.75278,2656.5,2656.3,3.2078]
[1752063471977,0.75279,2656.4,2656.3,4.00953]
[1752063472174,0.75279,2656.4,2656.3,5.37583]
[1752063472677,0.75279,2656.4,2656.3,4.00953]
[1752063472976,1.2987,2657.0,2656.3,4.00953]
[1752063473175,0.75276,2656.5,2656.4,1.2475]
[1752063473573,0.75276,2656.5,2656.4,2.80202]
[1752063473778,0.75275,2656.6,2656.4,2.80202]
[1752063473974,1.88169,2656.8,2656.5,1.65766989]
[1752063474181,0.7527,2656.7,2656.6,1.65766989]
[1752063475178,0.75275,2656.6,2656.3,3.2078]
[1752063475379,0.75275,2656.6,2656.4,0.75278]
[1752063475880,0.75272,2656.7,2656.4,1.55451]
[1752063476175,0.75273,2656.6,2656.4,1.55449]
[1752063476480,30.261,2656.9,2656.3,3.2078]
[1752063476481,73.49785127,2656.9,2656.3,3.2078]
[1752063476676,33.44139,2656.8,2656.3,3.9606]
[1752063476873,0.75276,2656.5,2656.3,4.76232]
[1752063477074,0.75271,2656.7,2656.5,0.75274]
[1752063477276,0.75271,2656.7,2656.3,4.00953]
[1752063477277,0.75267,2656.8,2656.6,3.2078]
[1752063477577,0.75266,2656.9,2656.7,0.75269]
[1752063477975,0.75264,2657.0,2656.7,1.55442]
[1752063478169,0.75266,2656.9,2656.7,1.55442]
[1752063478374,0.75264,2657.0,2656.7,0.80173]
[1752063478577,54.236,2657.4,2656.7,0.80173]
[1752063478578,54.236,2657.4,2656.9,3.2078]
[1752063478878,0.75255,2657.3,2656.9,3.2078]
[1752063479080,0.75256,2657.2,2657.0,0.75261]
[1752063479280,0.75259,2657.1,2657.0,0.75261]
[1752063479478,0.75259,2657.1,2657.0,1.55434]
[1752063480075,0.75257,2657.2,2657.0,1.55434]
[1752063480379,0.75259,2657.1,2657.0,0.80173]
[1752063480579,0.75258,2657.2,2657.0,0.80173]
[1752063480971,0.75259,2657.1,2657.0,0.80173]
[1752063481376,0.75262,2657.0,2656.9,3.2078]
[1752063481575,0.75266,2656.9,2656.6,0.75272]
[1752063481775,0.75268,2656.8,2656.6,0.80173]
[1752063482082,0.75273,2656.6,2656.5,3.2078]
[1752063482282,0.75284,2656.2,2656.1,3.2078]
[1752063482480,0.75284,2656.2,2656.1,4.00953]
[1752063483078,0.75284,2656.2,2656.1,3.2078]
[1752063483384,0.75296,2655.8,2655.7,3.2078]
[1752063483780,0.75298,2655.7,2655.6,3.30265145]
[1752063483978,0.75298,2655.7,2655.3,3.2078]
[1752063483979,0.75301,2655.6,2655.5,3.30265145]
[1752063484678,0.75304,2655.5,2655.4,3.30265145]
[1752063484877,0.75307,2655.4,2655.3,6.51045145]
[1752063485082,0.75307,2655.4,2655.3,3.2078]
[1752063485782,0.75315,2655.1,2655.0,2.46371255]
[1752063485981,0.75318,2655.0,2654.9,1.65443671]
[1752063486185,0.75318,2655.0,2654.7,1.65443671]
[1752063486186,0.75324,2654.8,2654.7,1.65443671]
[1752063486382,0.75324,2654.8,2654.6,1.65443671]
[1752063486383,0.75327,2654.7,2654.6,1.65443671]
[1752063486582,0.75333,2654.5,2654.4,1.65443671]
[1752063486783,0.75335,2654.4,2654.3,1.65443671]
[1752063486980,0.75338,2654.3,2654.2,1.65443671]
[1752063487185,1.3686,2654.4,2653.1,7.60730427]
[1752063487384,0.75372,2653.1,2653.0,0.18559795]
[1752063487583,0.75372,2653.1,2653.0,7.95e-06]
[1752063487782,45.8,2653.1,2652.5,4.39950427]
[1752063487984,3.2078,2652.7,2652.5,4.39950427]
[1752063488185,3.2078,2652.7,2652.5,5.20123427]
[1752063488382,3.2078,2652.7,2652.5,0.80173]
[1752063489087,30.006,2653.7,2652.6,3.2078]
[1752063489288,0.75366,2653.4,2652.9,0.75378]
[1752063489485,3.2078,2653.2,2652.6,4.00953]
[1752063489684,0.75378,2653.0,2652.6,5.26983]
[1752063489884,3.2078,2653.2,2652.6,5.26983]
[1752063490084,0.75376,2653.0,2652.6,6.02368]
[1752063490281,3.2078,2653.2,2652.7,1.2603]
[1752063490483,3.9615,2653.2,2652.7,2.01412]
[1752063490689,3.9615,2653.2,2652.7,2.81585]
[1752063490891,3.9615,2653.2,2652.8,1.2523]
[1752063491083,3.9615,2653.2,2652.8,2.00609]
[1752063491084,3.2078,2653.2,2652.8,2.00609]
[1752063491285,3.2078,2653.2,2652.6,3.2078]
[1752063491590,3.2078,2653.2,2652.7,0.75382]
[1752063491791,3.2078,2653.2,2652.7,1.2523]
[1752063491986,3.2078,2653.2,2653.0,0.75374]
[1752063492289,3.2078,2653.2,2653.1,0.75372]
[1752063492696,3.2078,2653.2,2653.1,1.55545]
[1752063492990,3.2078,2653.6,2653.3,0.75366]
[1752063493183,3.2078,2653.6,2653.2,3.2078]
[1752063493385,3.2078,2653.6,2653.5,0.75361]
[1752063493584,0.75353,2653.8,2653.3,3.68915127]
[1752063493784,0.75351,2653.9,2653.7,0.75354]
[1752063494188,1.3693,2654.1,2653.7,1.55527]
[1752063494789,3.2078,2654.2,2653.7,0.80173]
[1752063494989,0.75344,2654.1,2653.7,1.55528]
[1752063495197,0.75344,2654.1,2653.8,0.75351]
[1752063495393,3.96123,2654.2,2653.9,0.75349]
[1752063495594,3.2078,2654.2,2654.0,0.75346]
[1752063495800,3.96121,2654.2,2654.0,0.75346]
[1752063495992,3.2078,2654.2,2654.0,1.55519]
[1752063496193,3.2078,2654.2,2654.1,0.75344]
[1752063496491,3.2078,2654.2,2654.0,1.55518]
[1752063496796,3.2078,2654.2,2654.1,0.75344]
[1752063496996,3.2078,2654.2,2654.1,2.00104]
[1752063497197,3.2078,2654.2,2654.1,2.80277]
[1752063497397,3.2078,2654.2,2654.1,1.55517]
[1752063498388,3.2078,2654.6,2654.1,0.80173]
[1752063498587,0.75333,2654.5,2654.4,0.75333]
[1752063498991,0.75333,2654.5,2654.4,1.55506]
[1752063499198,3.96113,2654.6,2654.5,0.75333]
[1752063499795,3.2078,2654.6,2654.5,1.55506]
[1752063499991,0.75328,2654.7,2654.5,0.80173]
[1752063500196,0.75324,2654.8,2654.7,0.75325]
[1752063500395,3.2078,2654.9,2654.5,1.55503]
[1752063500593,0.7533,2654.6,2654.5,1.55504]
[1752063500789,3.9611,2654.6,2654.5,1.55504]
[1752063500993,3.96111,2654.6,2654.1,1.8836]
[1752063501190,3.2078,2654.6,2654.5,0.75333]
[1752063501692,3.2078,2655.1,2655.0,0.75318]
[1752063502097,3.2078,2655.1,2655.0,1.55491]
[1752063502499,3.2078,2655.1,2655.0,0.75318]
[1752063502895,3.2078,2655.1,2655.0,1.55491]
[1752063503304,0.75319,2655.0,2654.9,0.75321]
[1752063503495,3.2078,2655.1,2655.0,0.75318]
[1752063504606,3.2078,2655.1,2654.9,0.75319]
[1752063504899,0.75319,2655.0,2654.8,0.75323]
[1752063505200,0.75319,2655.0,2654.6,2.06823]
[1752063505201,0.75327,2654.7,2654.6,0.80173]
[1752063505394,3.2078,2654.7,2654.6,1.55503]
[1752063505596,3.96097,2655.1,2654.9,0.75321]
[1752063505893,3.2078,2655.1,2655.0,0.75318]
[1752063506296,3.2078,2655.1,2655.0,1.55491]
[1752063506693,3.2078,2655.1,2655.0,0.75318]
[1752063506896,3.2078,2655.1,2655.0,1.55491]
[1752063507297,3.96095,2655.1,2655.0,0.80173]
[1752063507596,3.96095,2655.1,2655.0,1.55491]
[1752063507903,3.2078,2655.1,2655.0,1.55491]
[1752063508201,3.96088,2655.4,2655.3,0.7531]
[1752063508595,3.96087,2655.4,2655.3,1.55483]
[1752063508897,3.2078,2655.4,2655.3,1.55483]
[1752063509092,3.96087,2655.4,2655.3,1.55483]
[1752063509396,2.86131,2655.8,2655.7,0.75297]
[1752063509397,0.75298,2655.8,2655.7,0.75297]
[1752063509699,3.2078,2656.2,2655.6,1.88254]
[1752063509897,3.2078,2656.2,2655.7,1.3286]
[1752063510099,0.75288,2656.1,2656.0,0.75287]
[1752063510292,1.88204,2656.3,2655.8,3.2078]
[1752063510497,3.2078,2656.5,2655.8,4.00953]
[1752063510698,0.7529,2656.0,2655.9,1.3286]
[1752063510895,0.7529,2656.0,2655.9,2.08153]
[1752063511100,0.75289,2656.1,2656.0,0.75289]
[1752063511298,1.88195,2656.5,2655.9,2.13033]
[1752063511502,34.58156,2656.8,2656.2,3.2078]
[1752063511503,3.2078,2656.8,2656.2,3.2078]
[1752063511800,0.75277,2656.5,2656.4,0.75278]
[1752063512002,0.75275,2656.6,2656.5,0.75275]
[1752063512199,0.75274,2656.6,2656.4,0.75277]
[1752063512393,0.75273,2656.6,2656.4,0.75277]
[1752063512591,0.75273,2656.6,2656.4,1.5545]
[1752063512794,0.75276,2656.5,2656.4,0.80173]
[1752063513200,0.75283,2656.3,2656.0,0.75288]
[1752063513598,0.75283,2656.3,2656.0,0.80173]
[1752063513906,0.75285,2656.2,2656.0,1.55461]
[1752063514596,0.75283,2656.3,2656.1,0.75287]
[1752063514801,0.75285,2656.2,2656.0,1.55461]
[1752063515203,0.75285,2656.2,2656.0,0.80173]
[1752063515404,0.75285,2656.2,2656.0,1.55461]
[1752063515801,0.75285,2656.2,2656.1,0.75287]
[1752063516204,3.2078,2656.5,2656.0,0.80173]
[1752063516400,0.75271,2656.7,2656.3,5.08983]
[1752063516598,0.75271,2656.7,2656.3,5.89156]
[1752063516799,4.4797,2656.9,2656.7,0.75269]
[1752063516999,0.75263,2657.0,2656.8,0.75265]
[1752063517201,3.746,2657.3,2656.7,0.80173]
[1752063517407,3.746,2657.3,2657.1,0.75256]
[1752063517594,3.746,2657.3,2657.1,1.55429]
[1752063517800,0.75256,2657.2,2657.1,0.80173]
[1752063518602,3.2078,2658.1,2657.2,1.88141]
[1752063518902,0.75235,2658.0,2657.7,0.75241]
[1752063519103,0.75234,2658.0,2657.8,0.75239]
[1752063519305,3.2078,2658.1,2657.7,0.80173]
[1752063519606,0.75235,2658.0,2657.8,0.75239]
[1752063519802,0.75239,2657.8,2657.7,0.80173]
[1752063520901,0.75239,2657.8,2657.6,3.2078]
[1752063520902,0.75242,2657.7,2657.6,3.2078]
[1752063521102,0.75242,2657.7,2657.6,4.00953]
[1752063521703,0.75238,2657.9,2657.6,4.76196]
[1752063521900,0.75234,2658.0,2657.7,0.7524]
[1752063522101,3.2078,2658.1,2657.6,4.00953]
[1752063522303,3.2078,2658.1,2657.7,1.2684]
[1752063522605,3.2078,2658.1,2658.0,0.75233]
[1752063522810,1.2413,2658.3,2657.7,0.80173]
[1752063523110,0.75227,2658.3,2657.9,0.75235]
[1752063523401,3.2078,2658.7,2657.9,3.2078]
[1752063523702,0.75216,2658.6,2658.2,3.2078]
[1752063524003,3.2078,2658.7,2658.2,0.80173]
[1752063524310,0.75216,2658.6,2658.4,0.75221]
[1752063524510,3.2078,2658.7,2658.3,0.75223]
[1752063524511,0.7522,2658.5,2658.3,0.75223]
[1752063524805,0.75223,2658.4,2658.2,4.76181]
[1752063525004,0.75221,2658.5,2658.3,0.75225]
[1752063525203,2.01668,2658.6,2658.3,0.75223]
[1752063525408,1.2645,2658.6,2658.4,0.75221]
[1752063525605,0.75233,2658.1,2657.9,3.2078]
[1752063525817,1.88056,2658.4,2657.9,4.00953]
[1752063526107,3.2078,2658.7,2658.2,0.75227]
[1752063526408,0.75221,2658.5,2658.2,0.75226]
[1752063526705,1.2645,2658.6,2658.3,0.75225]
[1752063526706,0.75217,2658.6,2658.3,0.75225]
[1752063526901,0.75217,2658.6,2658.4,0.75221]
[1752063527101,3.2078,2658.7,2658.6,0.75216]
[1752063527307,3.95987,2659.0,2658.3,1.88063]
[1752063527609,3.2078,2659.0,2658.4,4.31741127]
[1752063527808,1.2757,2659.1,2658.9,0.75208]
[1752063528003,1.2757,2659.1,2658.8,0.75209]
[1752063528004,0.75207,2659.0,2658.8,0.75209]
[1752063528310,1.2757,2659.1,2658.7,0.75212]
[1752063528501,0.75207,2659.0,2658.8,0.75209]
[1752063528701,0.75208,2658.9,2658.8,0.75209]
[1752063528897,0.75208,2658.9,2658.8,0.80173]
[1752063529101,0.75212,2658.8,2658.6,3.95994]
[1752063529301,7.52478127,2659.0,2658.3,3.2078]
[1752063529507,1.88043,2658.6,2657.9,3.2078]
[1752063529698,1.88056,2658.4,2657.9,3.2078]
[1752063529901,0.75233,2658.0,2657.9,4.00953]
[1752063530300,1.2757,2658.3,2657.9,0.80173]
[1752063530506,34.17615,2658.7,2657.9,0.80173]
[1752063530507,5.08815,2658.7,2657.9,4.00953]
[1752063530701,2.03707,2658.6,2658.3,0.75223]
[1752063530907,0.75219,2658.5,2658.3,0.75223]
[1752063531101,3.95995,2658.7,2658.3,0.80173]
[1752063531302,3.2078,2658.7,2658.6,0.75216]
[1752063531501,3.95994,2658.7,2658.5,0.75217]
[1752063531703,3.2078,2658.7,2658.3,0.80173]
[1752063531901,3.2078,2658.7,2658.6,0.75216]
[1752063532299,0.75214,2658.7,2658.5,0.75218]
[1752063532701,0.75214,2658.7,2658.5,1.55391]
[1752063532902,0.75215,2658.7,2658.5,0.80173]
[1752063533105,1.2849,2658.9,2658.5,1.55391]
[1752063533301,0.75215,2658.7,2658.5,1.55391]
[1752063534101,0.75216,2658.7,2658.5,1.55392]
[1752063534506,1.2849,2658.9,2658.5,0.80173]
[1752063534710,0.75216,2658.7,2658.5,0.80173]
[1752063534902,0.75216,2658.6,2658.5,0.80173]
[1752063535305,1.2849,2658.9,2658.2,3.2078]
[1752063535306,0.7522,2658.5,2658.2,3.2078]
[1752063535510,3.16514,2658.9,2658.4,0.75221]
[1752063535712,0.75219,2658.5,2658.4,0.75221]
[1752063536009,0.75219,2658.5,2658.4,0.80173]
[1752063536310,1.88035,2658.7,2658.2,3.2078]
[1752063536506,0.75225,2658.3,2658.2,4.00953]
[1752063536708,1.8805,2658.5,2658.0,0.75232]
[1752063536912,0.75231,2658.1,2658.0,0.75232]
[1752063537107,0.7523,2658.2,2658.0,1.55405]
[1752063537415,1.3537,2658.4,2658.1,0.7523]
[1752063537608,0.75226,2658.3,2658.0,0.80173]
[1752063537810,0.75229,2658.2,2658.1,0.75229]
[1752063538513,0.75229,2658.2,2657.9,3.2078]
[1752063538514,0.75233,2658.0,2657.9,3.2078]
[1752063538811,0.75233,2658.0,2657.9,4.00953]
[1752063540104,0.75233,2658.0,2657.9,4.76188]
[1752063540305,0.75233,2658.0,2657.9,4.00953]
[1752063540504,0.75233,2658.0,2657.9,4.76189]
[1752063541017,0.75233,2658.0,2657.9,4.00953]
[1752063541209,0.75233,2658.0,2657.9,4.76189]
[1752063542211,0.75233,2658.0,2657.9,4.00953]
[1752063542405,0.75233,2658.0,2657.9,3.2078]
[1752063542709,0.75233,2658.0,2657.5,0.75246]
[1752063542710,0.75254,2657.3,2657.0,3.2078]
[1752063542911,3.2078,2657.8,2657.3,0.75253]
[1752063543111,0.75239,2657.9,2657.5,2.07483047]
[1752063543414,0.75241,2657.8,2657.5,2.87656047]
[1752063543612,0.75243,2657.7,2657.6,0.75244]
[1752063543814,0.75242,2657.7,2657.6,1.55417]
[1752063544015,3.2078,2658.1,2658.0,0.75233]
[1752063544322,1.88056,2658.4,2657.9,3.2078]
[1752063544515,0.75226,2658.3,2658.2,0.75227]
[1752063544713,0.75228,2658.2,2658.1,0.75228]
[1752063544909,6.39436,2658.6,2657.9,4.00953]
[1752063544910,0.75227,2658.3,2658.2,0.75228]
[1752063545118,0.75225,2658.3,2658.2,0.75226]
[1752063545318,3.2078,2658.6,2658.2,0.80173]
[1752063545521,3.95998,2658.6,2658.2,0.80173]
[1752063545718,3.95998,2658.6,2658.5,0.75219]
[1752063545914,3.2078,2658.6,2658.5,0.75219]
[1752063546115,0.75216,2658.7,2658.6,0.75216]
[1752063546317,3.2078,2659.0,2658.9,0.75208]
[1752063546517,3.2078,2659.0,2658.5,5.08826]
[1752063546518,3.95988,2659.0,2658.5,5.08826]
[1752063546816,3.95988,2659.0,2658.9,0.75208]
[1752063547018,0.75208,2658.9,2658.8,0.75209]
[1752063547515,0.75208,2658.9,2658.8,1.55382]
[1752063548021,0.75208,2658.9,2658.8,0.80173]
[1752063548325,0.75211,2658.8,2658.5,3.95998]
[1752063548519,0.75211,2658.8,2658.5,4.76171]
[1752063548817,0.75211,2658.8,2658.6,0.75216]
[1752063549017,2.0711,2658.9,2658.6,0.75216]
[1752063549316,0.75212,2658.8,2658.6,0.75215]
[1752063549521,0.75212,2658.8,2658.6,0.75216]
[1752063549720,1.319,2658.9,2658.5,0.00564366]
[1752063549922,0.75216,2658.6,2658.5,0.00564366]
[1752063550318,2.07116,2658.6,2658.5,0.00564366]
[1752063552320,7.07116,2658.6,2658.5,0.00564366]
[1752063552519,8.12326,2658.6,2658.5,0.00564366]
[1752063555016,0.75239,2657.8,2657.6,4.85190357]
[1752063555217,0.75242,2657.7,2657.6,0.80173]
[1752063555522,1.88093,2657.9,2657.3,5.60442357]
[1752063555722,0.75248,2657.5,2657.3,5.65363357]
[1752063556020,0.75248,2657.5,2657.3,6.40615357]
[1752063556224,0.75245,2657.6,2657.4,0.75248]
[1752063556525,5.08867,2658.0,2657.4,0.75248]
[1752063556526,0.75237,2657.9,2657.7,0.7524]
[1752063556820,3.2078,2658.3,2657.6,3.2078]
[1752063557020,3.96006,2658.3,2657.8,4.3155707]
[1752063557228,0.75229,2658.2,2658.1,0.75229]
[1752063557726,0.75222,2658.5,2658.3,0.75222]
[1752063557924,0.75222,2658.4,2658.3,0.75223]
[1752063558226,0.75226,2658.3,2658.2,0.75226]
[1752063558420,0.75231,2658.1,2658.0,0.80173]
[1752063559917,0.75233,2658.0,2657.9,0.75234]
[1752063560118,0.75233,2658.0,2657.9,1.55407]
[1752063560317,1.88071,2658.2,2657.8,0.75237]
[1752063560517,4.4927,2658.3,2657.7,4.00953]
[1752063560722,0.75234,2658.1,2658.0,0.75232]
[1752063561122,1.8805,2658.5,2658.1,0.7523]
[1752063561322,4.2599,2658.6,2658.0,5.08862]
[1752063561628,3.2078,2658.6,2658.5,0.75219]
[1752063562025,3.2078,2658.6,2658.5,1.55392]
[1752063562223,3.2078,2658.6,2658.3,0.75225]
[1752063562425,4.494,2658.6,2658.1,2.13043]
[1752063562624,4.494,2658.6,2658.0,3.2078]
[1752063562932,0.75231,2658.1,2657.9,0.75234]
[1752063563133,0.75224,2658.4,2658.0,3.2078]
[1752063563424,0.75223,2658.4,2658.2,0.75228]
[1752063563728,0.75231,2658.1,2658.0,2.13043]
[1752063563928,0.75231,2658.1,2658.0,1.55406]
[1752063564131,0.75229,2658.2,2658.1,0.7523]
[1752063564631,0.75229,2658.2,2658.1,1.55403]
[1752063565130,0.75229,2658.2,2658.1,0.80173]
[1752063565320,0.75229,2658.2,2657.8,1.64410357]
[1752063565321,0.75236,2658.0,2657.9,0.75236]
[1752063565524,1.88065,2658.3,2657.8,2.44583357]
[1752063565830,0.75234,2658.0,2657.9,0.75234]
[1752063566026,0.75236,2657.9,2657.8,1.5541]
[1752063566331,1.88056,2658.4,2657.8,0.80173]
[1752063566528,0.75232,2658.1,2658.0,0.75233]
[1752063566729,0.7523,2658.2,2658.1,0.75231]
[1752063567335,3.2078,2658.6,2658.5,0.75219]
[1752063567632,0.75216,2658.6,2658.5,0.75219]
[1752063567934,0.7522,2658.5,2658.4,0.7522]
[1752063568127,0.75218,2658.6,2658.5,0.75218]
[1752063568328,0.00564366,2658.8,2658.2,3.43009712]
[1752063568530,0.7522,2658.5,2658.4,0.75221]
[1752063568831,5.08823,2658.6,2658.2,0.80173]
[1752063569029,0.75225,2658.3,2658.2,1.554]
[1752063569224,0.75225,2658.3,2658.2,0.80173]
[1752063569630,0.75225,2658.3,2658.2,1.55401]
[1752063569829,3.15453,2658.5,2658.0,3.2078]
[1752063570027,5.08846,2658.3,2657.8,1.64410357]
[1752063570232,3.13002,2658.2,2657.7,1.64410357]
[1752063570431,0.75238,2657.9,2657.7,1.64410357]
[1752063570631,0.75235,2658.0,2657.7,2.44583357]
[1752063570833,0.75232,2658.1,2657.7,2.44583357]
[1752063571140,0.75229,2658.2,2658.0,0.75231]
[1752063571536,3.2078,2658.3,2658.2,0.75228]
[1752063571845,2.03854,2658.4,2658.2,0.75226]
[1752063572135,1.2863,2658.4,2657.9,3.2078]
[1752063572335,0.75227,2658.3,2658.1,0.75228]
[1752063572540,2.03853,2658.4,2658.0,1.8808]
[1752063572741,1.2863,2658.4,2658.3,0.75225]
[1752063573036,0.75222,2658.4,2658.3,0.75225]
[1752063573341,1.2493,2658.5,2657.9,3.13027]
[1752063573536,0.75223,2658.4,2658.3,0.75224]